Cogmind - Beta 13 *** ADVENTURER MODE // 2024.05.09 @ 13:15:23 Player: Imrayya Result: Self-destructed Performance ------------- Evolutions (3) 1500 Regions Visited (7) 1400 Robots Destroyed (64) 320 Value Destroyed (2044) 2044 Prototype IDs (2) 40 Alien Tech Used (0) 0 Bonus (434) 434 TOTAL SCORE: 5738 Bonus ------- High Alert Combat Kills 134 Aligned with FarCom 300 Cogmind --------- Core Integrity 567/700 Matter 295/300 Energy 85/265 System Corruption 1% Temperature Warning (324) Movement Core (350) Ox6 Location -7/Lower Caves Parts ------- > --- POWER (2) -------- Improved Ion Engine > --- PROPULSION (2) --- (None) > --- UTILITY (5) ------ Small Storage Unit Targeting Computer > --- WEAPON (4) ------- Heavy Laser Gatling Laser > --- INVENTORY (8) ---- Light Treads Peak State ------------ > --- POWER ------------ Nuclear Core Nuclear Core > --- PROPULSION ------- Improved Treads Advanced Treads > --- UTILITY ---------- Heat Sink Cooling System Small Storage Unit Targeting Computer Improved Light Armor Plating > --- WEAPON ----------- Beam Cannon Ion Cannon Firepult > --- INVENTORY -------- Improved Ion Engine Light Nuclear Core Light Treads Light Treads Particle Charger Heavy Laser Gatling Laser Improved EM Pulse Cannon [Rating: 45] Favorites ----------- Power Nuclear Core Engine Light Ion Engine Power Core Nuclear Core Propulsion Light Treads Treads Light Treads Leg Aluminum Leg Utility Small Storage Unit Device Heat Sink Storage Small Storage Unit Processor Targeting Computer Protection Light Armor Plating Weapon EM Pulse Gun Energy Gun EM Pulse Gun Energy Cannon Ion Cannon Build | -11 -10 -10 -10 -9 -8 -7 -7 ------- Run | Yrd Mat Min Exi Min Mat Fac Low Slots Evolved 6 | . . . . . 4 2 . Power 1 | . . . . . 1 . . Propulsion . | . . . . . . . . Utility 3 | . . . . . 1 2 . Weapon 2 | . . . . . 2 . . Parts Attached 32 | 7 1 . . . 12 6 6 Power 9 | 1 . . . . 6 . 2 Engine 6 | 1 . . . . 4 . 1 Core 3 | . . . . . 2 . 1 Reactor . | . . . . . . . . Propulsion 7 | 3 . . . . 2 2 . Treads 6 | 2 . . . . 2 2 . Leg 1 | 1 . . . . . . . Wheel . | . . . . . . . . Hover . | . . . . . . . . Flight . | . . . . . . . . Utility 8 | 1 1 . . . 1 4 1 Device 3 | . . . . . . 2 1 Storage 1 | 1 . . . . . . . Processor 1 | . . . . . 1 . . Hackware . | . . . . . . . . Protection 3 | . 1 . . . . 2 . Artifact . | . . . . . . . . Weapon 8 | 2 . . . . 3 . 3 Energy Gun 4 | 2 . . . . . . 2 Energy Cannon 4 | . . . . . 3 . 1 Ballistic Gun . | . . . . . . . . Ballistic Cannon . | . . . . . . . . Launcher . | . . . . . . . . Special Weapon . | . . . . . . . . Impact Weapon . | . . . . . . . . Slashing Weapon . | . . . . . . . . Piercing Weapon . | . . . . . . . . Special Melee Weapon . | . . . . . . . . Unidentified Prototypes 2 | . . . . . 2 . . Parts Lost 18 | . . . . . 3 3 12 Power 3 | . . . . . . . 3 Propulsion 5 | . . . . . 2 1 2 Utility 5 | . . . . . . 2 3 Weapon 5 | . . . . . 1 . 4 Highest Loss Streak 11 | . . . . . 3 1 11 To Critical Strikes . | . . . . . . . . Average Slot Usage (%) 91 | . 98 100 100 100 87 91 81 Engine 5 | . 14 14 14 14 8 . . Core 9 | . . . . . 9 15 12 Treads 19 | . 28 28 28 28 17 14 14 Device 6 | . . . . . . 14 6 Storage 9 | . 14 14 14 14 9 7 7 Processor 5 | . . . . . 9 7 7 Protection 9 | . 12 14 14 14 9 6 6 Energy Gun 9 | . 28 28 28 28 6 . 1 Energy Cannon 15 | . . . . . 19 23 21 Naked Turns . | . . . . . . . . Heaviest Build 56 | 12 15 15 15 15 53 56 54 Greatest Support 45 | 40 40 40 40 40 43 45 42 Greatest Overweight (x) 16 | . . . . . 16 2 1 Average Overweight (x) . | . . . . . . 1 . Largest Inventory Capacity 8 | 8 8 8 8 8 8 8 8 Average Capacity 7 | 6 8 8 8 8 8 8 8 Most Carried 8 | 5 8 8 8 8 8 8 7 Average Carried 7 | 3 6 8 7 8 7 7 6 Final Capacity 8 | 8 8 8 8 8 8 8 8 Final Carried 8 | 4 8 8 8 8 8 7 1 Class Distribution -------------------- 47% | Pyromaniac-Skirmisher 32% | Mutant 9% | Skirmisher 8% | Pyromaniac-Gunner Dominant Class ---------------- Mutant | -10/Materials Mutant | -10/Mines Mutant | -10/Exiles Mutant | -9/Mines Skirmisher | -8/Materials Pyromaniac-Skirmisher | -7/Factory Pyromaniac-Gunner | -7/Lower Caves Resources | -11 -10 -10 -10 -9 -8 -7 -7 ----------- Run | Yrd Mat Min Exi Min Mat Fac Low Matter Collected 510 | 157 . 28 . . 262 50 13 Remotely . | . . . . . . . . Salvage Created 2749 | . 154 . . . 751 1448 396 Parts 108 | . 3 . . . 44 52 9 Haulers Intercepted 3 | . 1 . . . 1 1 . Recyclers Shooed 3 | . . . . . 2 1 . Parts Field Recycled . | . . . . . . . . Retrieved Matter . | . . . . . . . . Parts Self-Destructed 8 | . . . . . . . 8 Prevented . | . . . . . . . . Kills | -11 -10 -10 -10 -9 -8 -7 -7 ------- Run | Yrd Mat Min Exi Min Mat Fac Low Combat Hostiles Destroyed 40 | . . . . . 11 21 8 Guns 1 | . . . . . . . 1 Cannons 18 | . . . . . 5 9 4 AOE 10 | . . . . . 3 7 . Classes Destroyed 12 | . 2 . . . 7 3 . Worker 5 | . . . . . 4 1 . Builder 6 | . . . . . 2 4 . Hauler 3 | . 1 . . . 1 1 . Recycler 5 | . 1 . . . 1 3 . Operator 1 | . . . . . 1 . . Watcher 4 | . . . . . 2 2 . Swarmer 9 | . . . . . 3 4 2 Grunt 17 | . . . . . 4 9 4 Duelist 2 | . . . . . . 1 1 Sentry 6 | . . . . . 4 1 1 Hunter 3 | . . . . . . 3 . Programmer 3 | . . . . . . 3 . Best Kill Streak 10 | . 2 . . . 10 9 3 Combat Bots Only 5 | . . . . . 3 5 3 Max Kills in Single Turn 4 | . 1 . . . 4 4 2 Gunslinging . | . . . . . . . . Exploded 2 | . . . . . 1 2 . Melee . | . . . . . . . . Uniques/NPCs Destroyed . | . . . . . . . . Combat | -11 -10 -10 -10 -9 -8 -7 -7 -------- Run | Yrd Mat Min Exi Min Mat Fac Low Hostile Shots Fired 216 | . . . . . 62 60 94 Missed 64 | . . . . . 16 24 24 Damage Taken 2349 | . . . . . 744 720 885 Core 287 | . . . . . 154 41 92 Absorbed by Shields . | . . . . . . . . Ignored by Resistances 650 | . . . . . 187 207 256 Core Remaining (%) 90 | 100 . . . 100 72 . . Volleys Fired 62 | . 6 . . . 14 33 9 Largest 4 | . 2 . . . 3 3 4 Hottest 370 | . 80 . . . 370 370 370 Shots Fired 152 | . 12 . . . 30 82 28 Gun 25 | . 12 . . . 6 . 7 Cannon 127 | . . . . . 24 82 21 Launcher . | . . . . . . . . Special . | . . . . . . . . Kinetic . | . . . . . . . . Thermal 131 | . . . . . 24 82 25 Explosive . | . . . . . . . . Electromagnetic 21 | . 12 . . . 6 . 3 Robot Hit Streak 40 | . 5 . . . 16 17 40 Robot Miss Streak 2 | . 1 . . . 2 2 2 Penetration Max . | . . . . . . . . Secondary Targets . | . . . . . . . . Shots Hit Robots 118 | . 9 . . . 25 64 20 Core Hits 102 | . 3 . . . 32 55 12 Critical Kills 1 | . . . . . . . 1 Critical Parts Destroyed . | . . . . . . . . Critical Strikes 1 | . . . . . . . 1 Meltdown 1 | . . . . . . . 1 Melee Attacks . | . . . . . . . . Impact . | . . . . . . . . Slashing . | . . . . . . . . Piercing . | . . . . . . . . Sneak Attacks . | . . . . . . . . Combat Hostiles . | . . . . . . . . Follow-up Attacks . | . . . . . . . . Damage Inflicted 4451 | . 148 . . . 1277 2398 628 Guns 273 | . 126 . . . 55 . 92 Cannons 2170 | . . . . . 523 1281 366 Explosions 1996 | . 22 . . . 687 1117 170 Melee . | . . . . . . . . Ramming 12 | . . . . . 12 . . Kinetic . | . . . . . . . . Thermal 4227 | . 22 . . . 1210 2398 597 Explosive . | . . . . . . . . Electromagnetic 212 | . 126 . . . 55 . 31 Impact . | . . . . . . . . Slashing . | . . . . . . . . Piercing . | . . . . . . . . Highest Corruption 1 | . . . . . 1 1 1 Average Corruption 1 | . . . . . 1 1 1 Corruption Purged . | . . . . . . . . Corruption Blocked . | . . . . . . . . Effects 11 | . . . . . 4 6 1 Message Errors 3 | . . . . . . 2 1 Matter Fused 3 | . . . . . 1 2 . Heat Flow Errors 2 | . . . . . 2 . . Energy Discharges 2 | . . . . . . 2 . Data Loss (major) 1 | . . . . . 1 . . Overload Shots . | . . . . . . . . Overflow Damage 105 | . . . . . 24 81 . Projectiles 43 | . . . . . 5 38 . Explosions 62 | . . . . . 19 43 . Melee . | . . . . . . . . Knockbacks . | . . . . . . . . Impact . | . . . . . . . . Kinetic . | . . . . . . . . Secondary . | . . . . . . . . Self-Inflicted Damage 506 | . . . . . 138 358 10 Shots 24 | . . . . . 8 15 1 Rammed 1 | . . . . . 1 . . Targets Rammed 1 | . . . . . 1 . . Kicked . | . . . . . . . . Crushed . | . . . . . . . . Highest Temperature 671 | . 135 . . . 671 524 532 Average Temperature 218 | . 65 . . . 260 167 231 Received Heat Transfer 645 | . . . . . 261 42 342 Effects 37 | . . . . . 29 4 4 Shutdowns 12 | . . . . . 9 2 1 Energy Bleed 8 | . . . . . 5 2 1 Interference 7 | . . . . . 6 . 1 Matter Decay 1 | . . . . . 1 . . Short Circuit 1 | . . . . . . . 1 Damage (minor) 2 | . . . . . 2 . . Damage (major) 5 | . . . . . 5 . . Damage (core) 1 | . . . . . 1 . . Siege Activations . | . . . . . . . . Robots Corrupted . | . . . . . . . . Combat Hostiles . | . . . . . . . . Parts Fried 2 | . 2 . . . . . . Impact Corruptions . | . . . . . . . . Robots Melted 13 | . . . . . 5 5 3 Combat Hostiles 11 | . . . . . 3 5 3 Parts Melted 56 | . . . . . 13 34 9 Heat Transferred 16742 | . 50 . . . 5798 9167 1727 Parts Sabotaged . | . . . . . . . . Parts Stolen . | . . . . . . . . Parts Stripped . | . . . . . . . . Power Chain Reactions 2 | . 1 . . . . . 1 Alert | -11 -10 -10 -10 -9 -8 -7 -7 ------- Run | Yrd Mat Min Exi Min Mat Fac Low Peak Influence 589 | . 14 4 . . 321 589 . Initial 104 | . . 4 . . . 104 . Average 220 | . . 4 . . 148 356 . Maximum Alert Level 2 | . . . . . 1 2 . Low Security (%) 41 | 100 100 100 . 100 48 11 . Level 1 38 | . . . . . 51 49 . Level 2 19 | . . . . . . 39 . Level 3 . | . . . . . . . . Level 4 . | . . . . . . . . Level 5 . | . . . . . . . . High Security . | . . . . . . . . Max Security . | . . . . . . . . Squads Dispatched 8 | . . . . . 1 7 . Investigation 1 | . . . . . . 1 . Extermination 2 | . . . . . . 2 . Reinforcement 4 | . . . . . . 4 . Assault . | . . . . . . . . Garrison 1 | . . . . . 1 . . Intercept . | . . . . . . . . Searches Triggered . | . . . . . . . . Construction Impeded 3 | . . . . . . 3 . Haulers Reinforced 1 | . . . . . . 1 . Active Scanning Responses . | . . . . . . . . Cargo Convoy Interrupts 1 | . . . . . . 1 . Stealth | -11 -10 -10 -10 -9 -8 -7 -7 --------- Run | Yrd Mat Min Exi Min Mat Fac Low Distress Signals 2 | . . . . . 1 1 . Communications Jammed . | . . . . . . . . Distress Signals . | . . . . . . . . Times Spotted 56 | . 2 . . . 14 26 14 Peak Tracking Total 11 | . 1 . . . 5 6 11 Tactical Retreats 1 | . . . . . . 1 . Traps | -11 -10 -10 -10 -9 -8 -7 -7 ------- Run | Yrd Mat Min Exi Min Mat Fac Low Traps Triggered 1 | . . . . . . 1 . Indirectly . | . . . . . . . . Trap Hack Attempts . | . . . . . . . . Triggered . | . . . . . . . . Disarmed . | . . . . . . . . Reprogrammed . | . . . . . . . . Reused . | . . . . . . . . Traps Extracted . | . . . . . . . . Installed . | . . . . . . . . Triggered 2 | . . . . . . 1 1 Machines | -11 -10 -10 -10 -9 -8 -7 -7 ---------- Run | Yrd Mat Min Exi Min Mat Fac Low Machines Disabled 14 | . . . . . 4 8 2 Max in Single Turn 4 | . . . . . 1 4 2 Garrison Access 2 | . . . . . 1 1 . Machines Repaired . | . . . . . . . . Machines Dismantled . | . . . . . . . . Machines Sabotaged . | . . . . . . . . Overloaded Fab Kills . | . . . . . . . . Hacking | -11 -10 -10 -10 -9 -8 -7 -7 --------- Run | Yrd Mat Min Exi Min Mat Fac Low Machines Accessed 10 | . 1 . . . 4 5 . Terminals 5 | . 1 . . . 2 2 . Fabricators 2 | . . . . . . 2 . Repair Stations . | . . . . . . . . Recycling Units 1 | . . . . . 1 . . Scanalyzers . | . . . . . . . . Garrison Access 2 | . . . . . 1 1 . Total Hacks 22 | . 1 . . . 11 10 . Successful 9 | . 1 . . . 5 3 . Failed 13 | . . . . . 6 7 . Catastrophic 2 | . . . . . . 2 . Database Lockouts . | . . . . . . . . Manual 1 | . . . 1 . . . . Terminals 13 | . 1 . . . 8 4 . Fabricators 5 | . . . . . . 5 . Repair Stations . | . . . . . . . . Recycling Units 1 | . . . . . 1 . . Scanalyzers . | . . . . . . . . Garrison Access 3 | . . . . . 2 1 . Terminal Hacks 5 | . 1 . . . 3 1 . Branch Access Points 1 | . . . . . 1 . . Alert Level 1 | . 1 . . . . . . Transport Status 1 | . . . . . 1 . . Hauler Manifests 1 | . . . . . 1 . . Zone Layout 1 | . . . . . . 1 . Fabricator Hacks 1 | . . . . . . 1 . Build 1 | . . . . . . 1 . Repair Station Hacks . | . . . . . . . . Recycling Unit Hacks 1 | . . . . . 1 . . Report Inventory 1 | . . . . . 1 . . Scanalyzer . | . . . . . . . . Garrison Access Hacks 2 | . . . . . 1 1 . Seal Access 2 | . . . . . 1 1 . Unauthorized Hacks . | . . . . . . . . Terminals . | . . . . . . . . Fabricators . | . . . . . . . . Repair Stations . | . . . . . . . . Recycling Units . | . . . . . . . . Scanalyzers . | . . . . . . . . Garrison Access . | . . . . . . . . Data Cores Recovered 1 | . . . . . 1 . . Used . | . . . . . . . . Hacking Detections 7 | . . . . . 4 3 . Full Trace Events 2 | . . . . . 1 1 . Feedback Events 1 | . . . . . 1 . . Corruption 1 | . . . . . 1 . . Feedback Blocked . | . . . . . . . . Robot Schematics Acquired . | . . . . . . . . Robots Built . | . . . . . . . . Authchips . | . . . . . . . . Time 134 | . . . . . . 134 . Total Robot Build Rating . | . . . . . . . . Part Schematics Acquired . | . . . . . . . . Parts Built . | . . . . . . . . Authchips . | . . . . . . . . Time . | . . . . . . . . Total Part Build Rating . | . . . . . . . . Parts Repaired . | . . . . . . . . Time . | . . . . . . . . Parts Recycled . | . . . . . . . . Recycled Matter . | . . . . . . . . Retrieved Matter . | . . . . . . . . Retrieved Components . | . . . . . . . . Parts Scanalyzed . | . . . . . . . . Part Schematics Acquired . | . . . . . . . . Parts Damaged . | . . . . . . . . Bothacking | -11 -10 -10 -10 -9 -8 -7 -7 ------------ Run | Yrd Mat Min Exi Min Mat Fac Low Used RIF Installer . | . . . . . . . . Robots Hacked . | . . . . . . . . Non-combat . | . . . . . . . . Combat . | . . . . . . . . Robot Hacks Applied . | . . . . . . . . Relay Couplers Released . | . . . . . . . . Fabnet Peak Effective % . | . . . . . . . . Robots Rewired . | . . . . . . . . Allies Hacked . | . . . . . . . . Hacks Repelled . | . . . . . . . . Allies | -11 -10 -10 -10 -9 -8 -7 -7 -------- Run | Yrd Mat Min Exi Min Mat Fac Low Total Allies . | . . . . . . . . Largest Group . | . . . . . . . . Highest-Rated Group . | . . . . . . . . Highest-Rated Ally . | . . . . . . . . Total Orders . | . . . . . . . . Ally Attacks . | . . . . . . . . Total Damage . | . . . . . . . . Kills . | . . . . . . . . Allies Corrupted . | . . . . . . . . Allies Melted . | . . . . . . . . Intel | -11 -10 -10 -10 -9 -8 -7 -7 ------- Run | Yrd Mat Min Exi Min Mat Fac Low Robot Analysis Total . | . . . . . . . . Derelict Logs Recovered 1 | . . 1 . . . . . Drone Launches . | . . . . . . . . Drone Recoveries . | . . . . . . . . Exploration | -11 -10 -10 -10 -9 -8 -7 -7 ------------- Run | Yrd Mat Min Exi Min Mat Fac Low Turns Passed 3582 | 60 325 109 439 130 767 1403 349 Spaces Moved 1499 | 36 178 69 274 82 281 454 125 Core 13 | 12 . . . . 1 . . Treads 1483 | 21 178 69 274 82 280 454 125 Legs 3 | 3 . . . . . . . Wheels . | . . . . . . . . Hover . | . . . . . . . . Flight . | . . . . . . . . Fastest Speed 50 | 50 160 160 160 160 160 232 152 Average Speed 199 | 120 160 160 160 160 223 234 223 Slowest Speed 850 | 160 160 160 160 160 850 305 232 Overloaded Moves . | . . . . . . . . Propulsion Burnouts . | . . . . . . . . Robots Hopped . | . . . . . . . . Cave-ins Triggered . | . . . . . . . . Exploration Rate (%) 29 | 4 41 24 61 29 33 16 26 Regions Visited 7 Branch Regions 4 Pre-discovered Areas 1 | . . 1 . . . . . Known Exits Taken . | . . . . . . . . Unknown Exits Taken 7 | 1 1 1 1 1 1 1 . Scrap Searched 1 | . . 1 . . . . . Spaces Dug . | . . . . . . . . Terrain Destroyed 128 | . 2 . . . 71 52 3 Melee . | . . . . . . . . Projectile 4 | . . . . . 4 . . AOE 124 | . 2 . . . 67 52 3 Terrain Rammed . | . . . . . . . . Walls Destroyed . | . . . . . . . . Machines Disabled . | . . . . . . . . Actions | -11 -10 -10 -10 -9 -8 -7 -7 --------- Run | Yrd Mat Min Exi Min Mat Fac Low Total 1969 | 51 207 68 276 81 393 721 172 Wait 338 | 1 14 . . . 70 221 32 Move 1492 | 35 177 68 273 81 280 453 125 Hop . | . . . . . . . . Pick Up 31 | 8 7 . 1 . 11 4 . Fast Attach 3 | 2 . . . . 1 . . Attach 21 | 4 1 . . . 6 4 6 Detach . | . . . . . . . . Swap 8 | 1 . . . . 5 2 . Drop 11 | . 2 . 2 . 5 2 . Fire 62 | . 6 . . . 14 33 9 Melee . | . . . . . . . . Ram . | . . . . . . . . Kick . | . . . . . . . . Crush 1 | . . . . . 1 . . Escape Stasis 2 | . . . . . . 2 . Rewire . | . . . . . . . . Trap . | . . . . . . . . Miscellaneous . | . . . . . . . . Route ------- -11/Scrapyard -10/Materials -10/Mines -10/Exiles -9/Mines -8/Materials -7/Factory (discovered 2 exits: Sto / [*Low]) -7/Lower Caves History --------- Turn | Location | Event 16 | -11/Scrapyard | Discovered new exit (range 15) 61 | -11/Scrapyard | Entered Materials 316 | -10/Materials | Build established: Mutant 339 | -10/Materials | Discovered new exit (range 16) 386 | -10/Materials | Entered Mines 443 | -10/Mines | Learned location of Storage (-7) 489 | -10/Mines | Deemed a non-threat by the Exiles lab entrance 489 | -10/Mines | Discovered new exit (range 5) 495 | -10/Mines | Entered Exiles 535 | -10/Exiles | Met 8R-AWN 563 | -10/Exiles | Met EX-HEX 659 | -10/Exiles | Met EX-BIN 676 | -10/Exiles | Aligned with FarCom system 678 | -10/Exiles | Given EX-Vault access code 715 | -10/Exiles | Opened EX-Vault 759 | -10/Exiles | Found Prototype Energy Cannon 797 | -10/Exiles | Warned to stay clear of 0b10 Research branches 837 | -10/Exiles | Met EX-DEC 915 | -10/Exiles | Discovered new exit (range 10) 934 | -10/Exiles | Left Exiles lab with Firepult 934 | -10/Exiles | Entered Mines 1035 | -9/Mines | Discovered new exit (range 9) 1064 | -9/Mines | Entered Materials 1064 | -8/Materials | Evolved 4 slots: Power x1, Utility x1, Weapon x2 1176 | -8/Materials | Identified Firepult 1465 | -8/Materials | Garrison activated, responded to threat 1475 | -8/Materials | Build established: Skirmisher 1527 | -8/Materials | Lost 3 parts (2n1w) 1743 | -8/Materials | Discovered new exit (range 16) 1817 | -8/Materials | Build established: Pyromaniac-Skirmisher 1831 | -8/Materials | Entered Factory 1831 | -7/Factory | Evolved 2 slots: Utility x2 1832 | -7/Factory | Identified exit to Storage 3060 | -7/Factory | Discovered new exit (range 14) 3206 | -7/Factory | Cargo convoy interrupted 3234 | -7/Factory | Entered Lower Caves 3526 | -7/Lower Caves | Attracted the attention of an 0b10 base 3583 | -7/Lower Caves | Self-destructed Last Messages --------------- 03551_ Lgt. Nuclear Core destroyed. 03551_ Particle Gun melted. 03551_ Imp. Heat Sink melted. 03551_ G-47 Trooper destroyed. 03552_ Beam Cannon destroyed. 03553_ Lgt. Nuclear Core fries itself beyond repair. 03553_ Imp. Light Armor Plating destroyed. 03553_ Penetrated by Slug. 03566_ S-27 Virus suffers critical hit (Burn). 03573_ Particle Charger destroyed. 03573_ Critical hit (Burn: +37). 03575_ Imp. EM Pulse Cannon destroyed. 03575_ Lgt. Treads destroyed. 03576_ S-27 Virus destroyed. 03577_ Critical hit (Burn: +37). 03579_ G-47 Trooper destroyed. 03580_ Adv. Treads destroyed. 03582_ Hvy. Laser broken. 03582_ Overheating: Short circuit. 03582_ Ion Cannon destroyed. Map ----- +----------------------------------------------------+ | ?????????????????????????????????????????????????? | | ?????????????????????????????????????????????????? | | ?????????????????????????????????????????????????? | | ?????????????????????????????????????????????????? | | ?????????????????????????????????????????????????? | | ?????????????????????????????????????????????????? | | ?????????????????????????????????????????????????? | | ?????????????????????????????????????????????????? | | ?????????????????????????????????????????????????? | | ?????????????????????????????????????????????????? | | ?????????????????????????????????????????????????? | | ?????????????????????????????????????????????????? | | ?????????????????????????? #####?????????????????? | | ?????????????????????????? ???##????????????? | | ?????????????????????????? ??# ###??????????? | | ?????????????????????????? #?# ??????????? | | ???????????????#??????????# ## ??????????? | | ??????????????## ##???????? ???????????? | | ??????????????# #??????? ????????????? | | ???????????????# #??????? ?????????????? | | ???????????????# #?????? ???????????????? | | ???????????????# #?????# #????????????????? | | ????????????????# ###### ##???????????????? | | ???????????????????# ##??????????????? | | ?????????????????#### g #??????????????? | | ??????????# @ g%gs #??????????????? | | ????????????# %g! #??????????????? | | ????????????# ######++++######= ##?????????????? | | ??????????????????????? """??# ##????????????? | | ???????????????????????? " ??# #????????????? | | ????????????????????????? ?# #????????????" | | ?????????????????????????? ?# #???????????"" | | ???????????????????????????# # ##???????? | | ???????????????????????????# %# #???????? "" | | ???????????????????????????# / # #??" | | ?????????????????????? " %/ ## ##??" " | | ????????????????? / % #% #?########??? | | ????????????????### """" ""## ##?####???### ? | | ??????????????????"??"""" " ?# ### ##?## #?? | | ??????????????????????""" "??# #?# #?? | | ?????????????????????? T??# ### ##?# | | ????????????????????? ???# ## #?# | | ????????????????????#######???# #### #?# | | ????????????????????????????? #??####### ### | | ???????????????????????????? #????????## % % | | ?????????????????????????? ?????????# % | | ????????????????????????? ????????# # | | ???????????????????????? ???????# # | | ??????????????????????? ???????# ## # | | ??????????????????????? ???????######### | +----------------------------------------------------+ Best States ------------- Heat Dissipation 66 Energy Generation 23 Energy Capacity 415 Matter Stores 300 Matter Capacity 300 Sight Range 16 Terrain Scan Density 10 Armor Coverage 150 Resistance: KI 20 Resistance: TH 20 Resistance: EX 20 Resistance: EM 20 Resistance: I 20 Resistance: S 20 Resistance: P 20 Evasion (%) 50 Targeting Accuracy 5 Recoil Reduction 2 Particle Charging 15 Offensive Hacking 10 Item Schematics ----------------- None Robot Schematics ------------------ None Fabricated ------------ Nothing Alien Tech Used ----------------- None Achievements -------------- None Challenges ------------ None Game ------ Seed RefineryAntigravFlail Manual? 0 Play Time 00:25:06 Cumulative 3.7 hours Start 2024.05.09 @ 12:35:49 End 2024.05.09 @ 13:15:23 Sessions 1 Manual Loads 0 Difficulty Adventurer Special Mode None Game No. 5 Rogue 0 Adventurer 5 Explorer 0 Win Type - Total 0 Types 0/0/0/0/0/0/0/0/0 Lore% 11 Gallery% 15 Achievement% 13 Wizard Run 0 Options --------- Layout 0 ASCII 0 Keyboard 0 Movement Mouse Keybinds 0 Fullscreen 2 Font 36/Smallcaps Map View 76x50 Zoom Use 0% Tactical HUD 1 Map Filters NONE Filters NONE Steam 1 RUN: f9b23892-c1ce-4c18-af5c-df0dc3172d94